Cogmind - Beta 13 @@@ ROGUE MODE // 2024.04.23 @ 20:05:03 Player: gabagool Result: Destroyed by KU-ROO(R) with Subdweller Laser Performance ------------- Evolutions (0) 0 Regions Visited (2) 400 Robots Destroyed (24) 120 Value Destroyed (632) 632 Prototype IDs (0) 0 Alien Tech Used (0) 0 Bonus (0) 0 TOTAL SCORE: 1152 Bonus ------- None Cogmind --------- Core Integrity 0/250 Matter 231/300 Energy 74/100 System Corruption 2% Temperature Cool (6) Movement Walking (120) Location -10/Subcaves Parts ------- > --- POWER (1) -------- (None) > --- PROPULSION (2) --- Myomer Leg Myomer Leg > --- UTILITY (2) ------ Sensor Array Targeting Computer > --- WEAPON (2) ------- Bore Cannon Grenade Launcher > --- INVENTORY (5) ---- Beam Cannon Light Assault Rifle Battle Rifle Peak State ------------ > --- POWER ------------ Light Nuclear Core > --- PROPULSION ------- Myomer Leg Myomer Leg > --- UTILITY ---------- Scrap Shield > --- WEAPON ----------- Beam Cannon Bore Cannon > --- INVENTORY -------- Sensor Array Light Assault Rifle [Rating: 27] Favorites ----------- Power Light Nuclear Core Engine Ion Engine Power Core Light Nuclear Core Propulsion Light Treads Treads Light Treads Leg Myomer Leg Utility High-capacity Storage Unit Device Sensor Array Storage High-capacity Storage Unit Processor Targeting Computer Protection Scrap Shield Weapon Light Cannon Energy Gun Small Laser Energy Cannon Beam Cannon Ballistic Gun Light Assault Rifle Ballistic Cannon Light Cannon Launcher Grenade Launcher Build | -11 -10 -10 ------- Run | Yrd Mat Sub Slots Evolved . | . . . Power . | . . . Propulsion . | . . . Utility . | . . . Weapon . | . . . Parts Attached 26 | 8 10 8 Power 3 | 1 2 . Engine 1 | 1 . . Core 2 | . 2 . Reactor . | . . . Propulsion 4 | 2 . 2 Treads 2 | 2 . . Leg 2 | . . 2 Wheel . | . . . Hover . | . . . Flight . | . . . Utility 8 | 3 2 3 Device 4 | 2 1 1 Storage 2 | 1 1 . Processor 1 | . . 1 Hackware . | . . . Protection 1 | . . 1 Artifact . | . . . Weapon 11 | 2 6 3 Energy Gun 1 | 1 . . Energy Cannon 1 | . 1 . Ballistic Gun 3 | 1 2 . Ballistic Cannon 4 | . 2 2 Launcher 2 | . 1 1 Special Weapon . | . . . Impact Weapon . | . . . Slashing Weapon . | . . . Piercing Weapon . | . . . Special Melee Weapon . | . . . Unidentified Prototypes . | . . . Parts Lost 4 | . 2 2 Power 2 | . 1 1 Propulsion . | . . . Utility 1 | . . 1 Weapon 1 | . 1 . Highest Loss Streak 2 | . 1 2 To Critical Strikes . | . . . Average Slot Usage (%) 99 | . 99 91 Core 13 | . 13 13 Treads 26 | . 28 12 Leg 1 | . . 15 Device 13 | . 14 8 Storage 13 | . 14 6 Energy Cannon 3 | . 3 14 Ballistic Gun 13 | . 14 . Ballistic Cannon 9 | . 9 14 Naked Turns . | . . . Heaviest Build 52 | 13 52 52 Greatest Support 50 | 40 40 50 Greatest Overweight (x) 2 | . 1 2 Average Overweight (x) . | . . . Largest Inventory Capacity 20 | 8 20 20 Average Capacity 18 | 6 19 12 Most Carried 17 | 8 13 17 Average Carried 10 | 5 10 9 Final Capacity 20 | 8 20 5 Final Carried 13 | 7 13 3 Class Distribution -------------------- 96% | Mutant 3% | Scavenger-Mutant Dominant Class ---------------- Mutant | -10/Materials Scavenger-Mutant | -10/Subcaves Resources | -11 -10 -10 ----------- Run | Yrd Mat Sub Matter Collected 759 | 274 387 98 Remotely 47 | 47 . . Salvage Created 721 | 94 447 180 Parts 48 | 8 26 14 Haulers Intercepted 2 | . 2 . Recyclers Shooed . | . . . Parts Field Recycled . | . . . Retrieved Matter . | . . . Parts Self-Destructed 4 | . . 4 Prevented . | . . . Kills | -11 -10 -10 ------- Run | Yrd Mat Sub Combat Hostiles Destroyed 17 | . 13 4 Guns 3 | . 3 . Cannons 14 | . 10 4 Classes Destroyed 8 | 2 5 1 Tunneler 1 | 1 . . Hauler 2 | . 2 . Recycler 1 | 1 . . Operator 2 | . 2 . Watcher 1 | . 1 . Swarmer 3 | . 3 . Grunt 12 | . 10 2 Subdweller 2 | . . 2 Best Kill Streak 2 | 2 2 2 Combat Bots Only 2 | . 2 2 Max Kills in Single Turn 1 | 1 1 1 Gunslinging . | . . . Exploded . | . . . Melee . | . . . Uniques/NPCs Destroyed . | . . . Combat | -11 -10 -10 -------- Run | Yrd Mat Sub Hostile Shots Fired 133 | . 93 40 Missed 43 | . 30 13 Damage Taken 1159 | . 601 558 Core 265 | . 116 149 Absorbed by Shields . | . . . Core Remaining (%) 100 | 100 . . Volleys Fired 70 | 4 55 11 Largest 2 | 2 2 2 Hottest 117 | 60 55 117 Shots Fired 140 | 8 110 22 Gun 74 | 8 66 . Cannon 66 | . 44 22 Launcher . | . . . Special . | . . . Kinetic 125 | 4 110 11 Thermal 15 | 4 . 11 Explosive . | . . . Electromagnetic . | . . . Robot Hit Streak 8 | 3 8 4 Robot Miss Streak 6 | 1 6 4 Penetration Max 1 | . . 1 Secondary Targets . | . . . Shots Hit Robots 80 | 5 64 11 Core Hits 41 | 4 31 6 Critical Kills 1 | . . 1 Critical Parts Destroyed . | . . . Critical Strikes 4 | . 1 3 Destroy 3 | . . 3 Blast 1 | . 1 . Melee Attacks . | . . . Impact . | . . . Slashing . | . . . Piercing . | . . . Sneak Attacks . | . . . Combat Hostiles . | . . . Follow-up Attacks . | . . . Damage Inflicted 1150 | 46 844 260 Guns 410 | 46 364 . Cannons 740 | . 480 260 Explosions . | . . . Melee . | . . . Ramming . | . . . Kinetic 1008 | 26 844 138 Thermal 142 | 20 . 122 Explosive . | . . . Electromagnetic . | . . . Impact . | . . . Slashing . | . . . Piercing . | . . . Highest Corruption 2 | . 2 2 Average Corruption 2 | . 2 2 Corruption Purged . | . . . Corruption Blocked . | . . . Effects 21 | . 18 3 Message Errors 9 | . 8 1 Matter Fused 3 | . 1 2 Heat Flow Errors 4 | . 4 . Energy Discharges 1 | . 1 . Data Loss (minor) 4 | . 4 . Overload Shots . | . . . Overflow Damage 1 | . 1 . Projectiles 1 | . 1 . Explosions . | . . . Melee . | . . . Knockbacks 7 | . 3 4 Impact . | . . . Kinetic 7 | . 3 4 Secondary . | . . . Self-Inflicted Damage . | . . . Shots . | . . . Rammed . | . . . Targets Rammed . | . . . Kicked . | . . . Crushed . | . . . Highest Temperature 236 | 20 236 36 Average Temperature 27 | 13 31 8 Received Heat Transfer 270 | . 162 108 Siege Activations . | . . . Robots Corrupted . | . . . Combat Hostiles . | . . . Parts Fried . | . . . Impact Corruptions . | . . . Robots Melted . | . . . Combat Hostiles . | . . . Parts Melted . | . . . Heat Transferred 309 | 50 . 259 Parts Sabotaged . | . . . Parts Stolen . | . . . Parts Stripped . | . . . Power Chain Reactions . | . . . Alert | -11 -10 -10 ------- Run | Yrd Mat Sub Peak Influence 157 | 10 157 . Initial 6 | . 6 . Average 58 | 3 61 . Maximum Alert Level . | . . . Low Security (%) 100 | 100 100 . Level 1 . | . . . Level 2 . | . . . Level 3 . | . . . Level 4 . | . . . Level 5 . | . . . High Security . | . . . Max Security . | . . . Squads Dispatched 2 | . 2 . Investigation 1 | . 1 . Extermination . | . . . Reinforcement 1 | . 1 . Assault . | . . . Garrison . | . . . Intercept . | . . . Searches Triggered . | . . . Construction Impeded . | . . . Haulers Reinforced . | . . . Active Scanning Responses . | . . . Cargo Convoy Interrupts . | . . . Stealth | -11 -10 -10 --------- Run | Yrd Mat Sub Distress Signals 1 | . 1 . Communications Jammed . | . . . Distress Signals . | . . . Times Spotted 35 | . 25 10 Peak Tracking Total 7 | . 4 7 Tactical Retreats 2 | . 2 . Traps | -11 -10 -10 ------- Run | Yrd Mat Sub Traps Triggered 1 | . 1 . Indirectly . | . . . Trap Hack Attempts . | . . . Triggered . | . . . Disarmed . | . . . Reprogrammed . | . . . Reused . | . . . Traps Extracted . | . . . Installed . | . . . Triggered . | . . . Machines | -11 -10 -10 ---------- Run | Yrd Mat Sub Machines Disabled 1 | . 1 . Max in Single Turn 1 | . 1 . Machines Repaired . | . . . Machines Dismantled . | . . . Machines Sabotaged . | . . . Overloaded Fab Kills . | . . . Hacking | -11 -10 -10 --------- Run | Yrd Mat Sub Machines Accessed 8 | . 8 . Terminals 6 | . 6 . Fabricators . | . . . Repair Stations . | . . . Recycling Units 2 | . 2 . Scanalyzers . | . . . Garrison Access . | . . . Total Hacks 21 | . 21 . Successful 13 | . 13 . Failed 8 | . 8 . Catastrophic 3 | . 3 . Database Lockouts . | . . . Manual 16 | . 16 . Terminals 16 | . 16 . Fabricators . | . . . Repair Stations . | . . . Recycling Units 5 | . 5 . Scanalyzers . | . . . Garrison Access . | . . . Terminal Hacks 2 | . 2 . Branch Access Points 1 | . 1 . Terminal Index 1 | . 1 . Fabricator Hacks . | . . . Repair Station Hacks . | . . . Recycling Unit Hacks 5 | . 5 . Recycle Component 2 | . 2 . Process 1 | . 1 . Report Inventory 2 | . 2 . Scanalyzer . | . . . Garrison Access Hacks . | . . . Unauthorized Hacks 6 | . 6 . Terminals 6 | . 6 . Botnet 5 | . 5 . Operators 1 | . 1 . Fabricators . | . . . Repair Stations . | . . . Recycling Units . | . . . Scanalyzers . | . . . Garrison Access . | . . . Data Cores Recovered 1 | . 1 . Used . | . . . Hacking Detections 8 | . 8 . Full Trace Events 1 | . 1 . Feedback Events . | . . . Feedback Blocked . | . . . Robot Schematics Acquired . | . . . Robots Built . | . . . Authchips . | . . . Time . | . . . Total Robot Build Rating . | . . . Part Schematics Acquired . | . . . Parts Built . | . . . Authchips . | . . . Time . | . . . Total Part Build Rating . | . . . Parts Repaired . | . . . Time . | . . . Parts Recycled 2 | . 2 . Recycled Matter 189 | . 189 . Retrieved Matter . | . . . Retrieved Components . | . . . Parts Scanalyzed . | . . . Part Schematics Acquired . | . . . Parts Damaged . | . . . Bothacking | -11 -10 -10 ------------ Run | Yrd Mat Sub Used RIF Installer . | . . . Robots Hacked . | . . . Non-combat . | . . . Combat . | . . . Robot Hacks Applied . | . . . Relay Couplers Released . | . . . Fabnet Peak Effective % . | . . . Robots Rewired . | . . . Allies Hacked . | . . . Hacks Repelled . | . . . Allies | -11 -10 -10 -------- Run | Yrd Mat Sub Total Allies . | . . . Largest Group . | . . . Highest-Rated Group . | . . . Highest-Rated Ally . | . . . Total Orders . | . . . Ally Attacks . | . . . Total Damage . | . . . Kills . | . . . Allies Corrupted . | . . . Allies Melted . | . . . Intel | -11 -10 -10 ------- Run | Yrd Mat Sub Robot Analysis Total . | . . . Derelict Logs Recovered . | . . . Drone Launches . | . . . Drone Recoveries . | . . . Exploration | -11 -10 -10 ------------- Run | Yrd Mat Sub Turns Passed 2390 | 110 2118 162 Spaces Moved 929 | 58 803 68 Core 15 | 15 . . Treads 864 | 43 803 18 Legs 50 | . . 50 Wheels . | . . . Hover . | . . . Flight . | . . . Fastest Speed 50 | 50 160 120 Average Speed 224 | 131 237 155 Slowest Speed 260 | 160 240 260 Overloaded Moves . | . . . Propulsion Burnouts . | . . . Robots Hopped . | . . . Cave-ins Triggered . | . . . Exploration Rate (%) 29 | 3 81 5 Regions Visited 2 Branch Regions 1 Pre-discovered Areas . | . . . Known Exits Taken . | . . . Unknown Exits Taken 2 | 1 1 . Scrap Searched . | . . . Spaces Dug . | . . . Terrain Destroyed 4 | . . 4 Melee . | . . . Projectile 4 | . . 4 AOE . | . . . Terrain Rammed . | . . . Walls Destroyed . | . . . Machines Disabled . | . . . Actions | -11 -10 -10 --------- Run | Yrd Mat Sub Total 1097 | 84 910 103 Wait 33 | 1 27 5 Move 927 | 57 802 68 Hop . | . . . Pick Up 33 | 14 13 6 Fast Attach . | . . . Attach 12 | 7 2 3 Detach 1 | . . 1 Swap 14 | 1 8 5 Drop 7 | . 3 4 Fire 70 | 4 55 11 Melee . | . . . Ram . | . . . Kick . | . . . Crush . | . . . Escape Stasis . | . . . Rewire . | . . . Trap . | . . . Miscellaneous . | . . . Route ------- -11/Scrapyard -10/Materials (discovered 5 exits: [*Mat x2] / *Min x2 / [*Sub]) -10/Subcaves (discovered 1 exit: [*Mat]) History --------- Turn | Location | Event 6 | -11/Scrapyard | Discovered new exit (range 15) 111 | -11/Scrapyard | Entered Materials 300 | -10/Materials | Build established: Mutant 631 | -10/Materials | Discovered new exit (range 14) 1278 | -10/Materials | Discovered new exit (range 16) 1302 | -10/Materials | Identified exit to Mines 2209 | -10/Materials | Discovered new exit (range 7) 2229 | -10/Materials | Entered Subcaves 2268 | -10/Subcaves | Discovered new exit (range 10) 2286 | -10/Subcaves | Core integrity fell below 50% 2364 | -10/Subcaves | Ambushed by swarm of Subdwellers 2371 | -10/Subcaves | Ambushed by Subdwellers from Twisted Machinery 2382 | -10/Subcaves | Core integrity fell below 20% 2391 | -10/Subcaves | Destroyed by KU-ROO(R) with Subdweller Laser Last Messages --------------- AX-1L3(R) destroyed. SM-J3L(R) emerges from the Twisted Machinery. RH-VL2(R) emerges from the Twisted Machinery. SO-7BO(R) angrily emerges from the Twisted Machinery. SO-7BO(R) suffers critical hit (Destroy). SO-7BO(R) destroyed. HV Slug penetrates Wall. O6-XPS(R) affixes Scrap Shield Fragment to Scrap Shield. 7G-0GY(R) affixes Scrap Shield Fragment to Scrap Shield. Scrap Shield destroyed. H1K I5DSD P BR8X6YX/OLAQNR9RLONCTCD PB HV Slug penetrates Wall. HV Slug penetrates 7G-0GY(R). 7G-0GY(R) suffers critical hit (Destroy). Z5-FLO(R) suffers critical hit (Destroy). Z5-FLO(R) knocked back. Lgt. Nuclear Core destroyed. Map ----- +----------------------------------------------------+ | ???????????????????????????????????????????????? | | ???????????????????????????????????????????????? | | ???????????????????????????????????????????????? | | ???????????????????????????????????????????????? | | ???????????????????????????????????????????????? | | ???????????????????????????????????????????????? | | ???????????????????????????????????????????????? | | ?????????????????????????????? ???????????????? | | ????????????????????????????? ????????????????? | | ????????????????????????????? ????????????????? | | ????????????????????????????# #????????????????? | | ???????????????????????##### ?????????????????? | | ???????????????????????? ?????????????????? | | ????????????????????###?? ??????????????????? | | ????????????????????# ??# #????#?????????????? | | ???????????????????## ##?#" ##?#"#?????????????? | | ??????????????????## #;?#"[ ## #??????????????? | | ??????????????????# ;##%!% ##??????????????? | | ??????????????????# ; %&= #?????????###### | | ????????????????### !&R*& ############ | | ????????????????# * ##% | | ????????????????# ### %% < | | ????????????????# R ##?## # ##### ## | | ????????????????# RR ##???#######???######## | | ????????????????# %RR##?????????????????????# | | ????????????????## @#??????????????????????? | | ????????????????#;## #??????????????????????? | | ????????????????#??# #??????????????????????? | | ???????????????????## #??????????????????????? | | ????????????????????# ##??????????????????????? | | ????????????????????# #???????????????????????? | | ???????????????????? ???????????????????????? | | ??????????????????? #???????????????????????? | | ??????????????????? ##???????????????????????? | | ?????????????????? ?????????????????????????? | | ?????????????????# ?????????????????????????? | | ????????????????? ?????????????????????????? | | ???????????????? ?????????????????????????? | | ???????????????? ?????????????????????????? | | ????????????????# #?????????????????????????? | | ??????????????????? ??????????????????????????? | | ???????????????????????????????????????????????? | | ???????????????????????????????????????????????? | | ???????????????????????????????????????????????? | | ???????????????????????????????????????????????? | | ???????????????????????????????????????????????? | | ???????????????????????????????????????????????? | | ???????????????????????????????????????????????? | | ???????????????????????????????????????????????? | | ???????????????????????????????????????????????? | +----------------------------------------------------+ Best States ------------- Heat Dissipation 25 Energy Generation 14 Energy Capacity 250 Matter Stores 300 Matter Capacity 300 Sight Range 16 Robot Scan Range 14 Terrain Scan Density 10 Armor Coverage 800 Evasion (%) 55 Targeting Accuracy 5 Recoil Reduction 2 Item Schematics ----------------- None Robot Schematics ------------------ None Fabricated ------------ Nothing Alien Tech Used ----------------- None Achievements -------------- None Challenges ------------ None Game ------ Seed SlugCooledDetonator Manual? 0 Play Time 00:16:38 Cumulative 7.7 hours Start 2024.04.23 @ 19:48:23 End 2024.04.23 @ 20:05:03 Sessions 1 Manual Loads 0 Difficulty Rogue Special Mode None Game No. 9 Rogue 9 Adventurer 0 Explorer 0 Win Type - Total 0 Types 0/0/0/0/0/0/0/0/0 Lore% 8 Gallery% 14 Achievement% 15 Wizard Run 0 Options --------- Layout 1 ASCII 0 Keyboard 0 Movement Mouse Keybinds 0 Fullscreen 1 Font 24/Smallcaps Map View 50x35 Zoom Use 0% Tactical HUD 0 Map Filters NONE Filters NONE Steam 1 RUN: 50b3aaaf-ec49-4a6d-9bce-87849b3e13b1